Cogmind - Beta 12 X1 @@@ ROGUE MODE // 2022.07.18 @ 13:29:40 Player: btmk16 Result: Self-destructed Performance ------------- Evolutions (1) 500 Regions Visited (5) 1000 Robots Destroyed (81) 405 Value Destroyed (1741) 1741 Prototype IDs (25) 500 Alien Tech Used (0) 0 Bonus (363) 363 TOTAL SCORE: 4509 Bonus ------- High Alert Combat Kills 49 Follower Combat Kills 14 Aligned with FarCom 300 Cogmind --------- Core Integrity 175/400 Matter 186/300 Energy 100/100 System Corruption 5% Temperature Cool (0) Movement Core (50) Location -9/Exiles Parts ------- > --- POWER (1) -------- (None) > --- PROPULSION (3) --- (None) > --- UTILITY (3) ------ (None) > --- WEAPON (2) ------- (None) > --- INVENTORY (5) ---- Authchip [Device] Authchip [Armor] Decoy Drone Bay (16/16) Datajack Peak State ------------ > --- POWER ------------ Light Angular Momentum Engine > --- PROPULSION ------- Light Treads Armored Wheel > --- UTILITY ---------- Improved Heat Sink Huge Storage Unit Improved Medium Armor Plating > --- WEAPON ----------- Autogun Improved Light Cannon > --- INVENTORY -------- Improved Deuterium Engine Wheel Improved Heat Sink Large Battery Medium Matter Pod Sensor Array Improved Sensor Array Signal Interpreter Improved Terrain Scanner Hardened Light Armor Plating Hardened Light Armor Plating Authchip [R/NC] Authchip [R/NC] Authchip [R/Combat] Authchip [R/Combat] Authchip [Device] Authchip [Armor] Decoy Drone Bay Grenade Launcher Grenade Launcher Rocket Launcher Datajack Great Maul Makeshift Sword [Rating: 27] Favorites ----------- Power Ion Engine Engine Ion Engine Propulsion Wheel Treads Light Treads Leg Aluminum Leg Wheel Wheel Utility Huge Storage Unit Device Improved Heat Sink Storage Huge Storage Unit Protection Hardened Light Armor Plating Weapon Heavy Assault Rifle Energy Gun Small Laser Ballistic Gun Heavy Assault Rifle Ballistic Cannon Improved Light Cannon Launcher Grenade Launcher Special Weapon Plasma Cutter Build | -11 -10 -10 -9 -9 -9 ------- Run | Scr Mat Min Mat Min Exi Slots Evolved 2 | . . . 2 . . Power . | . . . . . . Propulsion 1 | . . . 1 . . Utility 1 | . . . 1 . . Weapon . | . . . . . . Parts Attached 58 | . 12 8 27 11 . Power 7 | . 1 2 3 1 . Engine 7 | . 1 2 3 1 . Core . | . . . . . . Reactor . | . . . . . . Propulsion 15 | . 5 . 8 2 . Treads 7 | . 3 . 4 . . Leg . | . . . . . . Wheel 8 | . 2 . 4 2 . Hover . | . . . . . . Flight . | . . . . . . Utility 15 | . 4 1 7 3 . Device 7 | . 2 . 4 1 . Storage 2 | . 2 . . . . Processor . | . . . . . . Hackware . | . . . . . . Protection 6 | . . 1 3 2 . Artifact . | . . . . . . Weapon 21 | . 2 5 9 5 . Energy Gun 7 | . 2 3 2 . . Energy Cannon . | . . . . . . Ballistic Gun 9 | . . 1 5 3 . Ballistic Cannon 1 | . . . 1 . . Launcher 3 | . . 1 . 2 . Special Weapon 1 | . . . 1 . . Impact Weapon . | . . . . . . Slashing Weapon . | . . . . . . Piercing Weapon . | . . . . . . Special Melee Weapon . | . . . . . . Unidentified Prototypes 1 | . . . 1 . . Parts Lost 14 | . 1 3 8 1 1 Power 2 | . . 1 1 . . Propulsion 7 | . . . 5 1 1 Utility 2 | . . 1 1 . . Weapon 3 | . 1 1 1 . . Highest Loss Streak 3 | . 1 3 3 1 1 To Critical Strikes . | . . . . . . Average Slot Usage (%) 97 | . 98 99 99 90 88 Engine 12 | . 14 13 10 11 11 Treads 9 | . 13 . 10 11 11 Wheel 19 | . 12 28 22 12 11 Device 9 | . 11 3 10 11 11 Storage 12 | . 15 14 11 11 11 Protection 8 | . . 10 11 11 11 Energy Gun 10 | . 14 23 7 . . Ballistic Gun 11 | . 14 4 12 11 11 Ballistic Cannon 2 | . . . 1 11 11 Naked Turns . | . . . . . . Heaviest Build 104 | 12 91 94 104 104 104 Greatest Support 40 | 20 40 26 36 22 12 Greatest Overweight (x) 8 | . 3 3 6 8 8 Average Overweight (x) 3 | . 1 3 4 7 8 Largest Inventory Capacity 25 | . 25 25 25 25 25 Average Capacity 22 | . 16 25 25 25 25 Most Carried 25 | . 25 25 25 25 25 Average Carried 21 | . 13 24 24 24 24 Final Capacity 25 | 8 25 25 25 25 5 Final Carried 25 | 6 25 25 25 25 5 Class Distribution -------------------- 60% | Mutant 39% | Scavenger-Mutant Dominant Class ---------------- Mutant | -10/Materials Mutant | -10/Mines Scavenger-Mutant | -9/Materials Mutant | -9/Mines Mutant | -9/Exiles Resources | -11 -10 -10 -9 -9 -9 ----------- Run | Scr Mat Min Mat Min Exi Matter Collected 1758 | 200 331 161 816 250 . Remotely . | . . . . . . Salvage Created 2613 | . 636 434 1454 89 . Parts 171 | . 43 26 81 21 . Haulers Intercepted 6 | . 2 . 4 . . Recyclers Shooed 5 | . 3 . 2 . . Parts Field Recycled . | . . . . . . Retrieved Matter . | . . . . . . Parts Self-Destructed . | . . . . . . Prevented . | . . . . . . Kills | -11 -10 -10 -9 -9 -9 ------- Run | Scr Mat Min Mat Min Exi Combat Hostiles Destroyed 64 | . 11 12 31 10 . Guns 50 | . 11 8 29 2 . Cannons 4 | . . . 2 2 . AOE 10 | . . 4 . 6 . Classes Destroyed 10 | . 7 . 2 1 . Worker 3 | . 1 1 1 . . Builder 1 | . 1 . . . . Tunneler 1 | . . . . 1 . Hauler 6 | . 2 . 4 . . Recycler 4 | . 1 1 2 . . Watcher 2 | . 2 . . . . Swarmer 29 | . 3 6 10 10 . Grunt 26 | . 8 6 12 . . Brawler 1 | . . . 1 . . Sentry 8 | . . . 8 . . Best Kill Streak 6 | . 4 4 6 5 . Combat Bots Only 6 | . 4 4 6 5 . Max Kills in Single Turn 3 | . 1 2 2 3 . Gunslinging 1 | . . 1 . . . Exploded 3 | . . 2 . 3 . Melee . | . . . . . . Uniques/NPCs Destroyed . | . . . . . . Combat | -11 -10 -10 -9 -9 -9 -------- Run | Scr Mat Min Mat Min Exi Damage Taken 2753 | . 474 391 1416 163 309 Core 329 | . 61 43 192 16 17 Absorbed by Shields 59 | . . 59 . . . Redirected to Shielding 5 | . . 5 . . . Core Remaining (%) 79 | 100 . 58 . . . Volleys Fired 227 | . 56 40 121 9 1 Largest 2 | . 2 2 2 2 2 Hottest 90 | . 70 90 90 69 62 Shots Fired 430 | . 93 74 243 18 2 Gun 400 | . 93 70 229 7 1 Cannon 24 | . . . 14 9 1 Launcher 6 | . . 4 . 2 . Special . | . . . . . . Kinetic 270 | . 56 18 178 16 2 Thermal 124 | . 37 41 46 . . Explosive 6 | . . 4 . 2 . Electromagnetic 30 | . . 11 19 . . Robot Hit Streak 18 | . 13 9 18 5 . Robot Miss Streak 5 | . 4 4 5 2 2 Penetration Max . | . . . . . . Secondary Targets 5 | . 1 1 3 . . Max Gunslinging Chain 1 | . 1 1 1 . . Shots Hit Robots 286 | . 69 47 163 7 . Core Hits 128 | . 33 24 60 11 . Critical Kills . | . . . . . . Critical Parts Destroyed . | . . . . . . Critical Strikes 2 | . . 2 . . . Burn 2 | . . 2 . . . Melee Attacks . | . . . . . . Impact . | . . . . . . Slashing . | . . . . . . Piercing . | . . . . . . Sneak Attacks . | . . . . . . Combat Hostiles . | . . . . . . Follow-up Attacks . | . . . . . . Damage Inflicted 4614 | . 863 893 2452 406 . Guns 3834 | . 863 590 2332 49 . Cannons 217 | . . . 120 97 . Explosions 563 | . . 303 . 260 . Melee . | . . . . . . Ramming . | . . . . . . Kinetic 2765 | . 553 115 1951 146 . Thermal 1021 | . 310 409 302 . . Explosive 535 | . . 275 . 260 . Electromagnetic 293 | . . 94 199 . . Impact . | . . . . . . Slashing . | . . . . . . Piercing . | . . . . . . Highest Corruption 5 | . . . 5 5 5 Average Corruption 4 | . . . 4 5 5 Corruption Purged . | . . . . . . Corruption Blocked . | . . . . . . Effects 63 | . . . 36 20 7 Message Errors 20 | . . . 13 5 2 Matter Fused 14 | . . . 9 2 3 Heat Flow Errors 8 | . . . 5 3 . Energy Discharges 3 | . . . 1 2 . Parts Rejected 1 | . . . . 1 . Data Loss (minor) 5 | . . . 3 2 . Data Loss (major) 3 | . . . 1 2 . Misfires 3 | . . . 1 1 1 Alerts 5 | . . . 3 2 . Weapon Failures 1 | . . . . . 1 Overload Shots . | . . . . . . Overflow Damage 28 | . . . . 28 . Projectiles 5 | . . . . 5 . Explosions 23 | . . . . 23 . Melee . | . . . . . . Knockbacks . | . . . . . . Impact . | . . . . . . Kinetic . | . . . . . . Secondary . | . . . . . . Self-Inflicted Damage 40 | . . . . 40 . Shots 1 | . . . . 1 . Rammed . | . . . . . . Targets Rammed . | . . . . . . Kicked . | . . . . . . Crushed . | . . . . . . Highest Temperature 282 | . 214 282 257 272 . Average Temperature 85 | . 119 71 72 131 . Received Heat Transfer 920 | . 192 191 537 . . Effects 4 | . 1 1 2 . . Energy Bleed 1 | . . 1 . . . Interference 3 | . 1 . 2 . . Siege Activations . | . . . . . . Robots Corrupted . | . . . . . . Combat Hostiles . | . . . . . . Parts Fried 1 | . . . 1 . . Impact Corruptions . | . . . . . . Robots Melted . | . . . . . . Combat Hostiles . | . . . . . . Parts Melted 3 | . 1 2 . . . Heat Transferred 2694 | . 818 1201 675 . . Parts Sabotaged . | . . . . . . Parts Stolen . | . . . . . . Parts Stripped . | . . . . . . Power Chain Reactions 1 | . . 1 . . . Missiles Intercepted . | . . . . . . Alert | -11 -10 -10 -9 -9 -9 ------- Run | Scr Mat Min Mat Min Exi Peak Influence 499 | . 197 200 499 470 . Initial 148 | . . 15 50 148 . Average 151 | . 54 88 193 334 . Maximum Alert Level 2 | . . 1 2 2 . Low Security (%) 66 | . 100 87 53 . . Level 1 28 | . . 12 38 84 . Level 2 4 | . . . 7 14 . Level 3 . | . . . . . . Level 4 . | . . . . . . Level 5 . | . . . . . . High Security . | . . . . . . Max Security . | . . . . . . Squads Dispatched 7 | . 1 1 5 . . Investigation 2 | . . 1 1 . . Extermination . | . . . . . . Reinforcement 5 | . 1 . 4 . . Assault . | . . . . . . Garrison . | . . . . . . Intercept . | . . . . . . Searches Triggered . | . . . . . . Construction Impeded . | . . . . . . Haulers Reinforced . | . . . . . . Active Scanning Responses . | . . . . . . Cargo Convoy Interrupts . | . . . . . . Stealth | -11 -10 -10 -9 -9 -9 --------- Run | Scr Mat Min Mat Min Exi Distress Signals 4 | . . 1 3 . . Communications Jammed . | . . . . . . Distress Signals . | . . . . . . Times Spotted 110 | . 20 14 59 12 5 Peak Tracking Total 11 | . 3 3 7 4 11 Tactical Retreats 7 | . . 1 4 1 1 Traps | -11 -10 -10 -9 -9 -9 ------- Run | Scr Mat Min Mat Min Exi Traps Triggered 7 | . 4 . 2 1 . Indirectly . | . . . . . . Trap Hack Attempts . | . . . . . . Triggered . | . . . . . . Disarmed . | . . . . . . Reprogrammed . | . . . . . . Reused . | . . . . . . Traps Extracted . | . . . . . . Installed . | . . . . . . Triggered . | . . . . . . Machines | -11 -10 -10 -9 -9 -9 ---------- Run | Scr Mat Min Mat Min Exi Machines Disabled 2 | . . . 1 . 1 Max in Single Turn 1 | . . . 1 . 1 Machines Sabotaged . | . . . . . . Garrisons Compromised . | . . . . . . Overloaded Fab Kills . | . . . . . . Hacking | -11 -10 -10 -9 -9 -9 --------- Run | Scr Mat Min Mat Min Exi Machines Accessed 19 | . 8 2 7 1 1 Terminals 13 | . 7 . 6 . . Fabricators . | . . . . . . Repair Stations . | . . . . . . Recycling Units 1 | . 1 . . . . Scanalyzers 1 | . . . 1 . . Garrison Access . | . . . . . . Total Hacks 35 | . 18 2 13 1 1 Successful 20 | . 9 2 7 1 1 Failed 14 | . 8 . 6 . . Catastrophic 1 | . . . 1 . . Database Lockouts 1 | . 1 . . . . Manual 18 | . 13 . 4 . 1 Terminals 28 | . 16 . 12 . . Fabricators . | . . . . . . Repair Stations . | . . . . . . Recycling Units 2 | . 2 . . . . Scanalyzers 1 | . . . 1 . . Garrison Access . | . . . . . . Terminal Hacks 14 | . 5 2 5 1 1 Robot Analysis 2 | . 2 . . . . Open Door 3 | . . 2 . 1 . Alert Level 2 | . . . 2 . . Unreport Threat 1 | . . . 1 . . Locate Traps 1 | . 1 . . . . Hauler Manifests 2 | . 1 . 1 . . Zone Layout 2 | . 1 . 1 . . EX-Prototype ID Bank 1 | . . . . . 1 Fabricator Hacks . | . . . . . . Repair Station Hacks . | . . . . . . Recycling Unit Hacks 1 | . 1 . . . . Retrieve Components 1 | . 1 . . . . Scanalyzer 1 | . . . 1 . . Insert Component 1 | . . . 1 . . Garrison Access Hacks . | . . . . . . Unauthorized Hacks 4 | . 3 . 1 . . Terminals 4 | . 3 . 1 . . Track 1 | . 1 . . . . Botnet 3 | . 2 . 1 . . Fabricators . | . . . . . . Repair Stations . | . . . . . . Recycling Units . | . . . . . . Scanalyzers . | . . . . . . Garrison Access . | . . . . . . Data Cores Recovered . | . . . . . . Used . | . . . . . . Hacking Detections 10 | . 4 . 6 . . Full Trace Events 1 | . . . 1 . . Feedback Events 1 | . . . 1 . . Corruption 1 | . . . 1 . . Feedback Blocked . | . . . . . . Robot Schematics Acquired . | . . . . . . Robots Built . | . . . . . . Authchips . | . . . . . . Time . | . . . . . . Total Robot Build Rating . | . . . . . . Part Schematics Acquired . | . . . . . . Parts Built . | . . . . . . Authchips . | . . . . . . Time . | . . . . . . Total Part Build Rating . | . . . . . . Parts Repaired . | . . . . . . Time . | . . . . . . Parts Recycled . | . . . . . . Recycled Matter . | . . . . . . Retrieved Matter . | . . . . . . Retrieved Components 1 | . 1 . . . . Parts Scanalyzed . | . . . . . . Part Schematics Acquired . | . . . . . . Parts Damaged . | . . . . . . Bothacking | -11 -10 -10 -9 -9 -9 ------------ Run | Scr Mat Min Mat Min Exi Used RIF Installer . | . . . . . . Robots Hacked . | . . . . . . Non-combat . | . . . . . . Combat . | . . . . . . Robot Hacks Applied . | . . . . . . Relay Couplers Released . | . . . . . . Fabnet Peak Effective % . | . . . . . . Robots Rewired . | . . . . . . Allies Hacked . | . . . . . . Hacks Repelled . | . . . . . . Allies | -11 -10 -10 -9 -9 -9 -------- Run | Scr Mat Min Mat Min Exi Total Allies 2 | . . 1 . 1 . Largest Group 1 | . . 1 . 1 . Highest-Rated Group 31 | . . 31 . 31 . Highest-Rated Ally 31 | . . 31 . 31 . Total Orders . | . . . . . . Ally Attacks 6 | . . 3 . 3 . Total Damage 124 | . . 61 . 63 . Kills 2 | . . 1 . 1 . Allies Corrupted . | . . . . . . Allies Melted . | . . . . . . Intel | -11 -10 -10 -9 -9 -9 ------- Run | Scr Mat Min Mat Min Exi Robot Analysis Total 2 | . 2 . . . . Derelict Logs Recovered 2 | . . 1 . 1 . Drone Launches . | . . . . . . Drone Recoveries . | . . . . . . Exploration | -11 -10 -10 -9 -9 -9 ------------- Run | Scr Mat Min Mat Min Exi Turns Passed 5785 | . 1483 1055 2254 638 355 Spaces Moved 3218 | 1 883 661 1209 297 167 Core . | . . . . . . Treads 391 | . 390 . 1 . . Legs 39 | 1 38 . . . . Wheels 2788 | . 455 661 1208 297 167 Hover . | . . . . . . Flight . | . . . . . . Fastest Speed 116 | 120 120 135 116 145 210 Average Speed 152 | 120 145 135 147 196 210 Slowest Speed 560 | 120 240 135 560 210 210 Overloaded Moves . | . . . . . . Propulsion Burnouts . | . . . . . . Robots Hopped . | . . . . . . Cave-ins Triggered . | . . . . . . Exploration Rate (%) 61 | 2 96 97 89 37 46 Regions Visited 5 Branch Regions 3 Pre-discovered Areas 1 | . . . . 1 . Known Exits Taken . | . . . . . . Unknown Exits Taken 5 | 1 1 1 1 1 . Scrap Searched 2 | . . 1 . 1 . Spaces Dug 14 | . . . . 14 . Terrain Destroyed 49 | . . 30 1 18 . Melee . | . . . . . . Projectile 2 | . . . 1 1 . AOE 47 | . . 30 . 17 . Terrain Rammed . | . . . . . . Walls Destroyed . | . . . . . . Machines Disabled . | . . . . . . Actions | -11 -10 -10 -9 -9 -9 --------- Run | Scr Mat Min Mat Min Exi Total 3699 | . 984 755 1452 338 170 Wait 98 | . 3 26 59 10 . Move 3213 | . 882 660 1208 296 167 Hop . | . . . . . . Pick Up 52 | . 23 10 15 3 1 Fast Attach 13 | . 3 2 7 1 . Attach 15 | . 2 3 9 1 . Detach 3 | . 1 . 1 1 . Swap 30 | . 7 3 11 9 . Drop 48 | . 7 11 21 8 1 Fire 227 | . 56 40 121 9 1 Melee . | . . . . . . Ram . | . . . . . . Kick . | . . . . . . Crush . | . . . . . . Escape Stasis . | . . . . . . Rewire . | . . . . . . Trap . | . . . . . . Miscellaneous . | . . . . . . Route ------- -11/Scrapyard -10/Materials (discovered 4 exits: *Mat x3 / *Min) -10/Mines (discovered 2 exits: *Mat x2) -9/Materials (discovered 5 exits: [*Mat x3] / *Min x2) -9/Mines (discovered 2 exits: [*Mat] / *Exi) -9/Exiles History --------- Turn | Location | Event 1 | -11/Scrapyard | Discovered new exit (range 0) 1 | -11/Scrapyard | Entered Materials 135 | -10/Materials | Discovered new exit (range 10) 141 | -10/Materials | Central database locked down 316 | -10/Materials | Build established: Mutant 399 | -10/Materials | Discovered new exit (range 4) 672 | -10/Materials | Discovered new exit (range 9) 903 | -10/Materials | Discovered new exit (range 8) 1484 | -10/Materials | Entered Mines 1490 | -10/Mines | Found the Drone Emporium 1500 | -10/Mines | Found Prototype Device 1534 | -10/Mines | Met a Derelict bent on vengeance 1712 | -10/Mines | Received a Rocket Launcher from a helpful Derelict 1809 | -10/Mines | Lost 3 parts (1p1u1w) 1957 | -10/Mines | A weapon hastily lodged in a ceiling crevice suddenly fell to the ground 2039 | -10/Mines | Met a Derelict shopkeep closing up shop 2106 | -10/Mines | Found a hidden stash of uninstalled traps 2156 | -10/Mines | Discovered new exit (range 9) 2159 | -10/Mines | Received a Mining Laser from a helpful Derelict 2280 | -10/Mines | Discovered new exit (range 9) 2395 | -10/Mines | Learned Materials security intel 2539 | -10/Mines | Entered Materials 2539 | -9/Materials | Evolved 2 slots: Propulsion x1, Utility x1 2817 | -9/Materials | Discovered new exit (range 8) 2965 | -9/Materials | Build established: Scavenger-Mutant 3128 | -9/Materials | Lost 3 parts (1p1n1u) 3219 | -9/Materials | Identified Decoy Drone Bay 3570 | -9/Materials | Discovered new exit (range 16) 3689 | -9/Materials | Discovered new exit (range 9) 3897 | -9/Materials | Discovered new exit (range 4) 4265 | -9/Materials | Discovered new exit (range 5) 4793 | -9/Materials | Entered Mines 4865 | -9/Mines | Core integrity fell below 50% 4936 | -9/Mines | Escorted by a lone wolf Derelict 4956 | -9/Mines | Learned location of Storage (-8) 5180 | -9/Mines | Deemed a non-threat by the Exiles lab entrance 5180 | -9/Mines | Discovered new exit (range 5) 5237 | -9/Mines | Build established: Mutant 5243 | -9/Mines | Learned location of 1 exit from Proximity Caves 5246 | -9/Mines | Discovered new exit (range 7) 5270 | -9/Mines | Met a Derelict who couldn't figure out how to use a Trap Extractor 5431 | -9/Mines | Entered Exiles 5482 | -9/Exiles | Met 8R-AWN 5518 | -9/Exiles | Met EX-HEX 5574 | -9/Exiles | Met EX-BIN 5599 | -9/Exiles | Aligned with FarCom system 5602 | -9/Exiles | Given EX-Vault access code 5658 | -9/Exiles | Opened EX-Vault 5674 | -9/Exiles | Found Trap Reconfigurator 5719 | -9/Exiles | Warned to stay clear of 0b10 Research branches 5770 | -9/Exiles | Attacked by the Exiles 5786 | -9/Exiles | Released all parts (7) 5786 | -9/Exiles | Self-destructed Last Messages --------------- change it right after you leave. Most certainly not to something like 1234 which I did last time as a little joke and some thief managed to sneak in here and steal a few of HEX's prototypes. 05741_ BOT3=I:PB/GWPYKVVLG876C 05769_ System corrupted: FCS attempts to trigger Imp. Light Cannon. 05769_ System corrupted: Imp. Light Cannon misfires. 05769_ Machine disabled. 05770_ EXILES: Hostile robot within lab perimeter. Defensive protocols time, folks! 05774_ EX-BIN: "I just want to science!" 05779_ Knocked back. 05782_ Arm. Wheel destroyed. 05784_ System corrupted: Imp. Light Cannon jammed. 05786_ Released Autogun. 05786_ Released Imp. Light Cannon. 05786_ Released Lgt. Treads. 05786_ Released Huge Storage Unit. 05786_ Released Lgt. Angular Momentum Engine. 05786_ Released Imp. Heat Sink. 05786_ Released Imp. Medium Armor Plating. Map ----- +----------------------------------------------------+ | ??????????????????????#" ## #????????????? | | ??????????????????????#""""""?# #?#########??? | | ??????????????????????##"###??# #?#"""""""#??? | | ??????????????????????? ??????# #?#"""""""#??? | | ??????????????????????????????# #?#"""""""#??? | | ?????????????????????????????## ###"" """"#??? | | ?????????????????????????????#" """"#??? | | ?????????????????????????????#" """#??? | | ?????????????????????????????#" """#??? | | ?????????????????????????????#" """#??? | | ?????????????????????????????#" """#??? | | ?????????????????????????????#" """#??? | | ?????????????????????????????## """"??? | | ??????????????????????????????# """#??? | | ??????????????????????????????#" "X" """"??? | | ??????????????????????????????#" """ #??? | | ??????????????????????????????#" """""""""#??? | | ?????????????????????????????##" ###########??? | | ????????????????????????????##"" #????????????? | | ??????????????#?? ?##??######"" #????????????? | | ????????????###X# #"###""""""" ##???????????? | | ??????????? """""" " "" ##???######## | | ??????????? "" """ " #####""""""" | | ?????????? " !"!]! " """ " | | ?????????? ]]!!!/ "" | | ?????????? !!!@]*! " | | ?????????? !!=%!! a | | ?????????? *!=!% a | | ?????????? %! | | ???????????" """ "" a | | ??????????? ######""" a | | ???????????? ""##????#####""" | | ???????????? c"""##?????????##""" | | ???????????? """#????????????#"""" | | ????????????? ""?????????????#"" | | ????????????? ??????????????"""" | | ?????????????? ????????????????" | | ?????????????? ???????????????? | | ???????????????? ????????????????? | | ??????????????????????????????????? | | ??????????????????????????????????? " | | ??????????????????????????????????? "" """ | | ?????????????????????????????????????"" " " ""#" | | ??????????????????????????????????????##""" """##" | | ?????????????????????????????????????????#"""???## | | ?????????????????????????????????????????##??????? | | ?????????????????????????????????????????????????? | | ?????????????????????????????????????????????????? | | ?????????????????????????????????????????????????? | | ?????????????????????????????????????????????????? | +----------------------------------------------------+ Best States ------------- Heat Dissipation 42 Energy Generation 18 Energy Capacity 265 Matter Stores 300 Matter Capacity 300 Sight Range 16 Terrain Scan Density 10 Armor Coverage 375 Core Shielding 20 Evasion (%) 55 Recoil Reduction 2 Authchip Count 6 Item Schematics ----------------- None Robot Schematics ------------------ None Fabricated ------------ Nothing Alien Tech Used ----------------- None Achievements -------------- None Challenges ------------ None Game ------ Seed ThiefCentriumDoomcannon Manual? 0 Play Time 00:33:42 Cumulative 409.5 hours Start 2022.07.18 @ 12:10:31 End 2022.07.18 @ 13:29:40 Sessions 1 Manual Loads 0 Difficulty Rogue Special Mode None Game No. 469 Rogue 468 Adventurer 0 Explorer 1 Win Type - Total 9 Types 6/0/1/2/0/0/0/0/0 Lore% 76 Gallery% 87 Achievement% 66 Wizard Run 0 Options --------- ASCII 0 Keyboard 1 Movement Vi Keybinds 0 Fullscreen 1 Font 18/SmallcapsGlow Map View 76x50 Tactical HUD 1 Map Filters NONE Filters NONE Steam 1 RUN: e8e94c7f-2243-4bd0-b036-2e82f06ac415